[Event "Chinese League Division-A 2024"]
[Site "Fuling Chongqing"]
[Date "2024.06.26"]
[Round "1.20"]
[White "Liu, Manli"]
[Black "Gao, Muziyan"]
[Result "0-1"]
[ECO "B51"]
[WhiteElo "2056"]
[BlackElo "1943"]
[Annotator "NA RC"]
[PlyCount "122"]
[EventDate "2024.06.28"]
[EventType "team-tourn"]
[EventCountry "CHN"]
[SourceTitle "playchess.com"]
[Source "ChessBase"]
[SourceQuality "1"]
[TimeControl "40/5400+30:1800+30"]

1. e4 {[%emt 0:00:04]} c5 {[%emt 0:00:06]} 2. Nf3 {[%emt 0:00:13]} Nc6 {[%emt 0:00:10]} 3. Bb5 {[%emt 0:00:14]} d6 {[%emt 0:01:12]} 4. O-O {[%emt 0:00:10]} Bd7 {[%emt 0:00:28]} 5. Re1 {[%emt 0:00:27]} Nf6 {[%emt 0:00:50]} 6. c3 {[%emt 0:00:14]} a6 {[%emt 0:00:13]} 7. Bf1 {[%emt 0:00:07]} Bg4 {[%emt 0:00:51]} 8. h3 {[%emt 0:09:51]} Bxf3 {[%emt 0:01:38]} 9. Qxf3 {[%emt 0:00:12]} g6 {[%emt 0:00:29]} 10. d3 {[%emt 0:04:48]} Bg7 {[%emt 0:00:33]} 11. Nd2 {[%emt 0:00:54]} O-O {[%emt 0:06:19]} 12. g3 {[%emt 0:12:45]} b5 {[%emt 0:21:06]} 13. Qd1 {[%emt 0:14:42]} Nd7 {[%emt 0:21:17]} 14. Nf3 {[%emt 0:08:00]} b4 {[%emt 0:09:57]} 15. d4 {[%emt 0:06:37]} bxc3 {[%emt 0:02:35]} 16. bxc3 {[%emt 0:00:16]} Qa5 {[%emt 0:01:18]} 17. Bd2 {[%emt 0:01:21]} Rab8 {[%emt 0:05:26]} 18. d5 {[%emt 0:04:18]} Nce5 {[%emt 0:06:55]} 19. Nxe5 {[%emt 0:03:43]} Bxe5 {[%emt 0:02:14]} 20. Qc2 {[%emt 0:01:49]} Rb7 {[%emt 0:03:28]} 21. Rab1 {[%emt 0:06:43]} Rfb8 {[%emt 0:00:15]} 22. c4 {[%emt 0:03:57]} Qc7 {[%emt 0:02:53]} 23. Rxb7 {[%emt 0:02:29]} Qxb7 {[%emt 0:02:19]} 24. Bd3 {[%emt 0:01:31]} Bd4 {[%emt 0:00:39]} 25. Kg2 {[%emt 0:08:41]} Ne5 {[%emt 0:06:29]} 26. Bf1 {[%emt 0:00:16]} Qb2 {[%emt 0:00:35]} 27. Rc1 {[%emt 0:00:16]} Qa3 {[%emt 0:00:27]} 28. Bc3 {[%emt 0:02:39]} Bxc3 {[%emt 0:01:25]} 29. Qxc3 {[%emt 0:00:01]} Qxa2 {[%emt 0:00:04]} 30. Ra1 {[%emt 0:01:33]} Qb3 {[%emt 0:00:42]} 31. Qxb3 {[%emt 0:01:14]} Rxb3 {[%emt 0:00:01]} 32. Rxa6 {[%emt 0:00:10]} Rb4 {[%emt 0:00:05]} 33. Ra7 {[%emt 0:01:57]} Kf8 {[%emt 0:00:09]} 34. h4 {[%emt 0:02:05]} h5 {[%emt 0:01:56]} 35. Be2 {[%emt 0:02:00]} Nxc4 {[%emt 0:00:26]} 36. Bxc4 {[%emt 0:01:14]} Rxc4 {[%emt 0:00:01]} 37. Kf3 {[%emt 0:00:30]} Rd4 {[%emt 0:02:14]} 38. Ke3 {[%emt 0:00:14]} f5 {[%emt 0:01:07]} 39. f3 {[%emt 0:00:08]} fxe4 {[%emt 0:00:31]} 40. fxe4 {[%emt 0:00:00]} Kf7 {[%emt 0:00:00]} 41. Ra8 {[%emt 0:01:36]} Kf6 {[%emt 0:05:37]} 42. Kf4 {[%emt 0:00:22]} Rd1 {[%emt 0:03:16]} 43. Rf8+ {[%emt 0:00:41]} Kg7 {[%emt 0:00:02]} 44. Rc8 {[%emt 0:00:44]} Rf1+ {[%emt 0:00:52]} 45. Ke3 {[%emt 0:00:21]} Rf8 {[%emt 0:01:46]} 46. Rc7 {[%emt 0:00:12]} Kf6 {[%emt 0:00:06]} 47. Kf4 {[%emt 0:00:23]} Ra8 {[%emt 0:01:17]} 48. Rc6 {[%emt 0:00:45]} Ra4 {[%emt 0:02:14]} 49. Rc8 {[%emt 0:00:04]} Kf7 {[%emt 0:02:22]} 50. Kf3 {[%emt 0:00:44]} Ra3+ {[%emt 0:00:21]} 51. Kf4 {[%emt 0:00:08]} Rc3 {[%emt 0:01:26]} 52. Rb8 {[%emt 0:00:52]} c4 {[%emt 0:04:05]} 53. Rc8 {[%emt 0:07:27]} Rc1 {[%emt 0:01:44]} 54. Rc7 {[%emt 0:05:35]} c3 {[%emt 0:03:56]} 55. Kg5 {[%emt 0:02:23]} c2 {[%emt 0:03:47]} 56. e5 {[%emt 0:01:55]} dxe5 {[%emt 0:01:19]} 57. d6 {[%emt 0:00:07]} Rd1 {[%emt 0:00:09]} 58. d7 {[%emt 0:00:48]} Rxd7 {[%emt 0:00:50]} 59. Rxc2 {[%emt 0:00:07]} Rd4 {[%emt 0:01:02]} 60. Kh6 {[%emt 0:02:01]} Rg4 {[%emt 0:00:13]} 61. Rc3 {[%emt 0:00:16]} e4 {[%emt 0:00:15]} 0-1

[Event "Chinese League Division-A 2024"]
[Site "Fuling Chongqing"]
[Date "2024.06.26"]
[Round "1.21"]
[White "Wang, Hao"]
[Black "Bai, Jinshi"]
[Result "1-0"]
[ECO "D94"]
[WhiteElo "2702"]
[BlackElo "2564"]
[Annotator "TA"]
[PlyCount "83"]
[EventDate "2024.06.28"]
[EventType "team-tourn"]
[EventCountry "CHN"]
[SourceTitle "playchess.com"]
[Source "ChessBase"]
[SourceQuality "1"]
[TimeControl "40/5400+30:1800+30"]

{[%evp 14,83,33,35,49,56,80,83,83,68,84,70,102,85,83,48,81,67,120,111,125,122,120,118,107,107,108,82,90,69,114,115,102,107,121,127,126,118,119,132,120,132,122,125,131,135,135,133,135,135,130,126,135,128,195,195,259,258,311,188,412,402,577,438,462,456,423,452,468,450,431,401]} 1. d4 {[%emt 0:00:03]} d5 {[%emt 0:00:32]} 2. c4 {[%emt 0:00:11]} c6 {[%emt 0:00:23]} 3. Nf3 {[%emt 0:00:38]} Nf6 {[%emt 0:00:43]} 4. e3 {[%emt 0:02:53]} g6 {[%emt 0:01:00]} 5. Nc3 {[%emt 0:02:23]} Bg7 {[%emt 0:00:19]} 6. Be2 {[%emt 0:03:03]} O-O {[%emt 0:00:19]} 7. O-O {[%emt 0:00:04]} b6 {[%emt 0:02:09]} 8. b4 {[%emt 0:04:00]} Ne4 {[%emt 0:04:16] D94: Grünfeld: 4 Nf3 Bg7 5 e3.} 9. Bb2 {[%emt 0:04:09]} Bb7 {[%emt 0:15:35]} 10. Nxe4 {[%emt 0:12:13]} dxe4 {[%emt 0:00:07] [#]} 11. Nd2 $1 {[%emt 0:00:04]} f5 {[%emt 0:05:32]} 12. c5 {[%emt 0:03:04]} Nd7 {[%emt 0:04:53]} 13. f3 $146 {[%emt 0:08:14]} ({Predecessor:} 13. Qb3+ Kh8 14. Rfd1 Nf6 15. a4 Nd5 16. Bc4 e6 17. b5 f4 18. Nxe4 cxb5 19. axb5 Nxe3 20. fxe3 Bxe4 21. exf4 Rxf4 {1-0 Zenner,C (2122)-Heidsiek,E (2135) GER-ch27 V06 corr 1997}) 13... exf3 {[%emt 0:05:11]} 14. Bc4+ {[%emt 0:00:54]} (14. Rxf3 Kh8 $14) 14... Kh8 {[%emt 0:15:36]} 15. Nxf3 {[%emt 0:00:31]} (15. gxf3 bxc5 16. bxc5 Nxc5 $15) (15. Rxf3 a5 $11) 15... e6 {[%emt 0:21:47]} (15... bxc5 $14 16. bxc5 Nf6 (16... Nxc5 $2 17. dxc5 Bxb2 18. Rb1 $18)) 16. Bxe6 {[%emt 0:06:56]} Qe7 {[%emt 0:01:05]} 17. Qb3 {[%emt 0:03:13]} Rae8 {[%emt 0:01:07]} 18. Bxd7 {[%emt 0:04:13]} Qxd7 {[%emt 0:00:05]} 19. Ne5 {[%emt 0:00:05]} Qe6 {[%emt 0:02:15]} 20. Rfc1 {[%emt 0:03:22]} Kg8 {[%emt 0:05:21]} 21. Kf2 {[%emt 0:06:32]} Bh6 {[%emt 0:04:22]} 22. g3 {[%emt 0:02:56]} Bg7 {[%emt 0:01:38]} 23. h4 {[%emt 0:08:55]} (23. cxb6 {simplifies} Bxe5 24. Qxe6+ Rxe6 25. dxe5 axb6 26. a4) 23... b5 {[%emt 0:01:13]} 24. Qxe6+ {[%emt 0:01:17]} Rxe6 {[%emt 0:00:04]} 25. a4 {[%emt 0:00:07]} Bxe5 {[%emt 0:03:33]} 26. dxe5 {[%emt 0:00:11]} Rd8 {[%emt 0:01:06]} 27. Rd1 {[%emt 0:01:46]} Rxd1 {[%emt 0:00:44]} 28. Rxd1 {[%emt 0:00:06]} bxa4 {[%emt 0:00:20]} 29. Rd7 {[%emt 0:00:14]} Ba6 {[%emt 0:00:09]} 30. Rxa7 {[%emt 0:00:08]} Bd3 {[%emt 0:03:32]} 31. Rxa4 {[%emt 0:00:35]} Kf7 {[%emt 0:00:08]} 32. Kf3 {[%emt 0:01:39]} Re7 {[%emt 0:00:13]} 33. Kf4 {[%emt 0:00:14]} Rb7 {[%emt 0:00:20]} (33... h6 $16 34. Ra3 Be4) 34. Kg5 $18 {[%emt 0:01:34]} Ke6 {[%emt 0:00:56]} (34... h5 {was worth a try.} 35. Bd4 Re7) 35. Bd4 $18 {[%emt 0:00:14]} h5 {[%emt 0:00:50]} 36. Bc3 {[%emt 0:03:27][%cal Oa4a8] Hoping for Ra8!} ({Not} 36. Kxg6 f4+ 37. e4 (37. Kxh5 fxg3 38. Kg4 g2 $15) 37... fxg3 38. Kxh5 g2 $15) 36... Rd7 $2 {[%emt 0:00:27]} (36... Kf7 {might work better.} 37. Ra8 Re7) 37. Ra8 $18 {[%emt 0:00:10]} (37. Kxg6 $2 f4+ 38. Kxh5 fxg3 $19) 37... Be4 {[%emt 0:00:35]} (37... Kf7 $142 38. Rc8 Be4) 38. Bd4 {[%emt 0:00:39]} (38. Kxg6 f4+ 39. Kxh5 fxg3 40. Re8+ Kd5 $17) 38... Rb7 {[%emt 0:00:13]} 39. Rd8 {[%emt 0:01:39]} (39. Kxg6 $2 {loses.} f4+ 40. Kxh5 fxg3 $19) 39... Rd7 {[%emt 0:00:49]} 40. Rg8 {[%emt 0:00:00]} f4 {[%emt 0:00:00]} 41. gxf4 {[%emt 0:00:23]} Kf7 {[%emt 0:01:33]} 42. Rb8 {[%emt 0:00:52]} 1-0

[Event "Chinese League Division-A 2024"]
[Site "Fuling Chongqing"]
[Date "2024.06.26"]
[Round "1.22"]
[White "Kong, Xiangrui"]
[Black "Zhao, Jun"]
[Result "1/2-1/2"]
[ECO "C67"]
[WhiteElo "2439"]
[BlackElo "2538"]
[Annotator "RC"]
[PlyCount "64"]
[EventDate "2024.06.28"]
[EventType "team-tourn"]
[EventCountry "CHN"]
[SourceTitle "playchess.com"]
[Source "ChessBase"]
[SourceQuality "1"]
[TimeControl "40/5400+30:1800+30"]

1. e4 {[%emt 0:00:10]} e5 {[%emt 0:00:18]} 2. Nf3 {[%emt 0:00:14]} Nc6 {[%emt 0:00:09]} 3. Bb5 {[%emt 0:00:06]} Nf6 {[%emt 0:00:17]} 4. O-O {[%emt 0:01:01]} Nxe4 {[%emt 0:00:09]} 5. Re1 {[%emt 0:00:16]} Nd6 {[%emt 0:00:18]} 6. a4 {[%emt 0:01:44]} Be7 {[%emt 0:01:17]} 7. Nc3 {[%emt 0:00:29]} a6 {[%emt 0:02:09]} 8. Bf1 {[%emt 0:00:22]} e4 {[%emt 0:00:31]} 9. Nxe4 {[%emt 0:00:40]} Nxe4 {[%emt 0:00:09]} 10. Rxe4 {[%emt 0:00:08]} d5 {[%emt 0:00:18]} 11. Re1 {[%emt 0:00:24]} d4 {[%emt 0:16:41]} 12. Bd3 {[%emt 0:02:30]} Be6 {[%emt 0:10:35]} 13. Be4 {[%emt 0:01:25]} Bd5 {[%emt 0:01:22]} 14. d3 {[%emt 0:03:10]} O-O {[%emt 0:01:00]} 15. Bf4 {[%emt 0:00:41]} Bxe4 {[%emt 0:08:17]} 16. Rxe4 {[%emt 0:10:28]} Bb4 {[%emt 0:02:45]} 17. Bd2 {[%emt 0:44:10]} Bxd2 {[%emt 0:05:38]} 18. Qxd2 {[%emt 0:00:59]} Re8 {[%emt 0:00:16]} 19. Rae1 {[%emt 0:04:54]} Rxe4 {[%emt 0:00:07]} 20. Rxe4 {[%emt 0:00:37]} Qf6 {[%emt 0:03:01]} 21. h4 {[%emt 0:04:44]} h6 {[%emt 0:02:24]} 22. Qe2 {[%emt 0:00:25]} Kf8 {[%emt 0:04:26]} 23. g4 {[%emt 0:09:55]} Qd6 {[%emt 0:01:31]} 24. h5 {[%emt 0:07:05]} Qd7 {[%emt 0:15:37]} 25. Kg2 {[%emt 0:00:35]} Re8 {[%emt 0:00:40]} 26. Kg3 {[%emt 0:04:40]} Qd6+ {[%emt 0:01:31]} 27. Kg2 {[%emt 0:00:10]} Re7 {[%emt 0:06:13]} 28. Nh4 {[%emt 0:01:02]} Qc5 {[%emt 0:08:13]} 29. Nf5 {[%emt 0:00:38]} Rxe4 {[%emt 0:00:05]} 30. Qxe4 {[%emt 0:01:05]} Qxc2 {[%emt 0:01:18]} 31. Nxd4 {[%emt 0:00:12]} Nxd4 {[%emt 0:02:03]} 32. Qxd4 {[%emt 0:00:02]} Qc6+ {[%emt 0:01:09]} 1/2-1/2

[Event "Chinese League Division-A 2024"]
[Site "Fuling Chongqing"]
[Date "2024.06.26"]
[Round "1.23"]
[White "Pang, Tao"]
[Black "Ma, Qun"]
[Result "1/2-1/2"]
[ECO "D47"]
[WhiteElo "2495"]
[BlackElo "2643"]
[Annotator "TA"]
[PlyCount "60"]
[EventDate "2024.06.28"]
[EventType "team-tourn"]
[EventCountry "CHN"]
[SourceTitle "playchess.com"]
[Source "ChessBase"]
[SourceQuality "1"]
[TimeControl "40/5400+30:1800+30"]

{[%evp 21,60,19,37,29,25,22,19,22,14,21,17,31,25,0,0,0,0,0,0,0,0,0,16,13,8,12,11,20,29,0,0,0,29,0,0,0,32,0,0,0,35]} 1. d4 {[%emt 0:00:03]} Nf6 {[%emt 0:00:29]} 2. c4 {[%emt 0:00:25]} e6 {[%emt 0:00:07]} 3. Nf3 {[%emt 0:00:24]} d5 {[%emt 0:00:13]} 4. Nc3 {[%emt 0:00:16]} c6 {[%emt 0:00:24]} 5. e3 {[%emt 0:03:30]} Nbd7 {[%emt 0:01:18]} 6. Bd3 {[%emt 0:01:49]} dxc4 {[%emt 0:00:40]} 7. Bxc4 {[%emt 0:00:04]} b5 {[%emt 0:00:23]} 8. Bd3 {[%emt 0:01:18]} b4 {[%emt 0:00:48]} 9. Ne4 {[%emt 0:00:45]} Nxe4 {[%emt 0:00:14]} 10. Bxe4 {[%emt 0:00:07]} Bb7 {[%emt 0:00:10]} 11. O-O {[%emt 0:01:21]} Be7 {[%emt 0:00:08]} 12. Nd2 {[%emt 0:04:55]} O-O {[%emt 0:00:23]} 13. b3 {[%emt 0:01:21]} Nf6 {[%emt 0:00:48]} 14. Bf3 {[%emt 0:03:39]} Nd5 {[%emt 0:00:13]} 15. Bb2 {[%emt 0:03:54]} c5 {[%emt 0:00:08]} 16. Ne4 {[%emt 0:03:38]} Ba6 {[%emt 0:00:32]} 17. Be2 {[%emt 0:03:15]} Bxe2 {[%emt 0:00:29]} 18. Qxe2 {[%emt 0:00:03]} cxd4 {[%emt 0:00:44]} 19. Bxd4 {[%emt 0:00:06]} Qd7 {[%emt 0:01:00]} 20. Rfc1 {[%emt 0:07:14]} Rfc8 {[%emt 0:00:59][%cal Bf8c8,Bc8c6,Bc6a6][%mdl 32]} 21. Qa6 {[%emt 0:04:30]} f5 {[%emt 0:07:22]} (21... f6 {feels hotter.} 22. h3 Kf7 23. a3 bxa3 24. Bc5 f5) 22. Nc5 {[%emt 0:04:55]} Qc6 {[%emt 0:13:01]} 23. Qxc6 {[%emt 0:02:49]} Rxc6 {[%emt 0:00:07]} 24. Nd3 {[%emt 0:00:25] Against e5} Ra6 {[%emt 0:06:51]} 25. Nc5 {[%emt 0:03:07]} Rc6 {[%emt 0:00:06]} 26. Nd3 {[%emt 0:00:03] Prevents e5.} Ra6 {[%emt 0:00:06]} 27. Nc5 {[%emt 0:00:04]} Rc6 {[%emt 0:00:12]} 28. Nd3 {[%emt 0:00:08] Prevents e5.} Ra6 {[%emt 0:00:53]} 29. Nc5 {[%emt 0:00:11]} Rc6 {[%emt 0:00:08]} 30. Nd3 {[%emt 0:00:03] Repels e5} Ra6 {[%emt 0:00:03] An uneventful encounter.   Weighted Error Value: White=0.07 (flawless) /Black=0.03 (flawless) .  OK:         	White=11    	Black=11     Best:        	---       	Black=1} 1/2-1/2

[Event "Chinese League Division-A 2024"]
[Site "Fuling Chongqing"]
[Date "2024.06.26"]
[Round "1.24"]
[White "Zhai, Mo"]
[Black "Song, Yuxin"]
[Result "1/2-1/2"]
[ECO "D50"]
[WhiteElo "2348"]
[BlackElo "2383"]
[Annotator "RC"]
[PlyCount "79"]
[EventDate "2024.06.28"]
[EventType "team-tourn"]
[EventCountry "CHN"]
[SourceTitle "playchess.com"]
[Source "ChessBase"]
[SourceQuality "1"]
[TimeControl "40/5400+30:1800+30"]

1. d4 {[%emt 0:00:18]} Nf6 {[%emt 0:00:22]} 2. c4 {[%emt 0:00:28]} e6 {[%emt 0:00:27]} 3. Nf3 {[%emt 0:01:29]} d5 {[%emt 0:02:10]} 4. Nc3 {[%emt 0:00:19]} c5 {[%emt 0:01:19]} 5. cxd5 {[%emt 0:01:14]} cxd4 {[%emt 0:00:50]} 6. Qxd4 {[%emt 0:00:10]} exd5 {[%emt 0:00:14]} 7. Bg5 {[%emt 0:00:28]} Be7 {[%emt 0:00:40]} 8. e3 {[%emt 0:00:33]} O-O {[%emt 0:00:55]} 9. Rd1 {[%emt 0:02:42]} Be6 {[%emt 0:03:07]} 10. Bd3 {[%emt 0:01:49]} h6 {[%emt 0:03:09]} 11. Bh4 {[%emt 0:00:38]} Nc6 {[%emt 0:00:54]} 12. Qa4 {[%emt 0:00:22]} Qb6 {[%emt 0:02:44]} 13. Qb5 {[%emt 0:06:18]} g5 {[%emt 0:04:32]} 14. Bg3 {[%emt 0:00:41]} Bb4 {[%emt 0:03:43]} 15. O-O {[%emt 0:03:22]} Bxc3 {[%emt 0:03:39]} 16. bxc3 {[%emt 0:00:21]} Ne4 {[%emt 0:01:59]} 17. Rb1 {[%emt 0:08:24]} Nxc3 {[%emt 0:04:52]} 18. Qxb6 {[%emt 0:00:17]} axb6 {[%emt 0:00:16]} 19. Rxb6 {[%emt 0:00:24]} Rxa2 {[%emt 0:02:32]} 20. Rxb7 {[%emt 0:01:10]} g4 {[%emt 0:01:43]} 21. Rb6 {[%emt 0:05:15]} Rc8 {[%emt 0:06:55]} 22. Ne5 {[%emt 0:07:16]} Ne2+ {[%emt 0:02:38]} 23. Bxe2 {[%emt 0:00:44]} Nxe5 {[%emt 0:00:09]} 24. Ba6 {[%emt 0:01:50]} Ra8 {[%emt 0:00:48]} 25. Bxe5 {[%emt 0:09:39]} R2xa6 {[%emt 0:00:28]} 26. Rb4 {[%emt 0:01:02]} Ra4 {[%emt 0:01:01]} 27. Rxa4 {[%emt 0:00:51]} Rxa4 {[%emt 0:00:09]} 28. f3 {[%emt 0:00:20]} h5 {[%emt 0:00:52]} 29. Bd4 {[%emt 0:01:44]} Kh7 {[%emt 0:00:49]} 30. fxg4 {[%emt 0:01:18]} hxg4 {[%emt 0:00:09]} 31. Kf2 {[%emt 0:00:11]} Kg6 {[%emt 0:00:22]} 32. Kg3 {[%emt 0:00:10]} Ra2 {[%emt 0:00:24]} 33. Rf6+ {[%emt 0:00:52]} Kg5 {[%emt 0:00:31]} 34. h4+ {[%emt 0:01:34]} gxh3 {[%emt 0:00:29]} 35. gxh3 {[%emt 0:00:07]} Ra8 {[%emt 0:00:44]} 36. h4+ {[%emt 0:03:22]} Kh5 {[%emt 0:00:04]} 37. Rf4 {[%emt 0:00:20]} Rg8+ {[%emt 0:00:22]} 38. Kf3 {[%emt 0:00:45]} Rg1 {[%emt 0:00:53]} 39. Kf2 {[%emt 0:00:38]} Rg4 {[%emt 0:00:13]} 40. Rxg4 {[%emt 0:00:54]} 1/2-1/2

[Event "Chinese League Division-A 2024"]
[Site "Fuling Chongqing"]
[Date "2024.06.26"]
[Round "1.25"]
[White "Li, Xueyi"]
[Black "Lu, Miaoyi"]
[Result "0-1"]
[ECO "D74"]
[WhiteElo "2209"]
[BlackElo "2449"]
[Annotator "TA"]
[PlyCount "92"]
[EventDate "2024.06.28"]
[EventType "team-tourn"]
[EventCountry "CHN"]
[SourceTitle "playchess.com"]
[Source "ChessBase"]
[SourceQuality "1"]
[TimeControl "40/5400+30:1800+30"]

{[%evp 14,92,19,19,16,2,14,8,3,-22,-19,-12,-17,-9,19,11,26,31,31,12,45,0,0,0,0,0,0,0,0,0,0,0,0,0,0,0,0,0,7,-5,0,-161,-151,-166,-179,-180,-180,-241,-265,-260,-257,-258,0,-67,0,-252,-248,-178,-97,-255,-255,-260,-260,-260,-256,-258,-254,-267,-267,-305,-254,-392,-413,-374,-355,-704,-676,-2042,-1869,-1534,-1302]} 1. d4 {[%emt 0:00:03]} Nf6 {[%emt 0:00:01]} 2. c4 {[%emt 0:00:11]} g6 {[%emt 0:00:02]} 3. Nf3 {[%emt 0:01:41]} Bg7 {[%emt 0:00:03]} 4. Nc3 {[%emt 0:00:41]} O-O {[%emt 0:00:04]} 5. g3 {[%emt 0:00:26]} d5 {[%emt 0:02:36]} 6. Bg2 {[%emt 0:03:18]} Nc6 {[%emt 0:06:31]} 7. cxd5 {[%emt 0:13:09]} Nxd5 {[%emt 0:00:14]} 8. O-O {[%emt 0:00:09]} e5 {[%emt 0:00:05][%cal Re5d4]} 9. Nxd5 {[%emt 0:05:10]} e4 {[%emt 0:00:02]} 10. Nd2 {[%emt 0:05:04][%cal Od2e4,Bf3d2,Bd2b3,Bb3c5][%mdl 32] Strongly threatening Nxe4!} Qxd5 {[%emt 0:00:16] The position is equal.} 11. e3 {[%emt 0:00:05]} Re8 {[%emt 0:00:06]} 12. Qb3 {[%emt 0:00:48]} Qxb3 {[%emt 0:03:20]} 13. Nxb3 {[%emt 0:00:11]} a5 {[%emt 0:09:04][%cal Ba7a5,Ba5a4][%mdl 32]} 14. Bd2 $1 {[%emt 0:11:26]} a4 {[%emt 0:23:52]} 15. Nc5 {[%emt 0:00:10]} f5 {[%emt 0:00:04]} 16. b3 {[%emt 0:00:04]} a3 {[%emt 0:03:01]} 17. Rac1 {[%emt 0:00:39]} Ne7 $1 {[%emt 0:03:16][%cal Bc6e7,Be7d5,Bd5c3][%mdl 32]} 18. Rfe1 {[%emt 0:14:29]} b6 {[%emt 0:20:21]} 19. Na4 {[%emt 0:01:37]} Nd5 {[%emt 0:00:07]} 20. Bf1 {[%emt 0:14:09]} Ba6 {[%emt 0:00:55]} 21. Bxa6 {[%emt 0:04:40]} Rxa6 {[%emt 0:00:01]} 22. Nc3 {[%emt 0:00:47]} Nxc3 {[%emt 0:05:19]} 23. Bxc3 {[%emt 0:00:05]} Bf8 {[%emt 0:01:54] Against Bb4} 24. Red1 {[%emt 0:00:27]} Raa8 {[%emt 0:02:09][%cal Ba6a8,Ba8d8,Bd8d7][%mdl 32]} 25. d5 {[%emt 0:02:23]} Rad8 {[%emt 0:00:19]} 26. Bf6 {[%emt 0:05:10]} Rd7 {[%emt 0:06:11]} 27. Bg5 $2 {[%emt 0:05:52] [#]} (27. Kf1 $11 {and White has nothing to worry.}) 27... Re5 $1 $19 {[%emt 0:04:30]} 28. Bf4 {[%emt 0:01:17]} Rexd5 {[%emt 0:00:02]} 29. Rxd5 {[%emt 0:00:12]} Rxd5 {[%emt 0:00:02]} 30. Rxc7 {[%emt 0:00:06][%mdl 4096] Endgame. KRB-KRB} (30. Bxc7 $142 Bc5 (30... Rd2 $2 31. Bxb6 Rxa2 32. Rc8 $19) 31. Rc2) 30... Rd2 {[%emt 0:04:48]} 31. Rc8 {[%emt 0:00:31] [#] And now Bh6 would win.} Kf7 $1 {[%emt 0:00:02]} (31... Rxa2 $2 32. Bh6 Kf7 (32... Ra1+ $2 33. Kg2 $18) 33. Rxf8+ $18) 32. Rc7+ {[%emt 0:00:11]} Kg8 $2 {[%emt 0:00:51]} (32... Ke6 $19 33. Rc6+ Kd7 34. Rc7+ Ke8 35. Rc8+ Ke7) 33. Rc8 $1 $15 {[%emt 0:00:04]} Kf7 $2 {[%emt 0:00:02] Black is more active.} (33... Rxa2 $2 34. Bh6 Kf7 (34... Ra1+ $2 35. Kg2 $18) 35. Rxf8+ $18) (33... g5 $1 $15 34. Bxg5 Kf7 (34... Rxa2 $2 35. Bh6 $18) 35. Rc7+ Kg6) 34. Rc7+ $19 {[%emt 0:00:02]} Ke6 {[%emt 0:01:13]} 35. Rc6+ {[%emt 0:00:14]} Kd7 {[%emt 0:01:40]} (35... Kd5 $19 36. Rc8 Be7) 36. Rxb6 {[%emt 0:00:46] This move loses the game for White.} (36. Rc7+ $17 Kd8 37. Rxh7) 36... Rxa2 {[%emt 0:00:03]} 37. Be5 {[%emt 0:00:13] [#]} Rb2 $1 {[%emt 0:01:53][%mdl 512]} 38. Rb7+ {[%emt 0:03:33]} (38. Bxb2 $2 axb2 39. Rb7+ Kc6 40. Rxh7 b1=Q+ $19 (40... b1=B $2 41. Rf7 $18)) 38... Kc6 {[%emt 0:00:30]} 39. Rxh7 {[%emt 0:00:26]} Rxb3 {[%emt 0:01:00]} 40. Kg2 {[%emt 0:00:00]} Kd5 {[%emt 0:00:00]} 41. Bh8 {[%emt 0:06:56]} a2 {[%emt 0:04:25]} 42. Ra7 {[%emt 0:00:07]} (42. Rd7+ $142 Bd6 43. g4) 42... Ra3 {[%emt 0:00:52]} 43. Rb7 {[%emt 0:00:18]} Bd6 {[%emt 0:06:30] Prevents Rb8. Hoping for ...Be5.} (43... a1=B 44. Bxa1 Rxa1 45. h4 $19) 44. Bb2 {[%emt 0:04:07]} (44. Ba1) 44... Ra5 {[%emt 0:03:07] ...Be5 is the strong threat. Black is clearly winning.} ({Inferior is} 44... a1=B 45. Rb5+ Ke6 46. Bxa3 Bxa3 47. g4 $11) ({Weaker is} 44... a1=Q 45. Bxa1 Rxa1 46. Rg7 $15) 45. Rd7 {[%emt 0:00:38]} Ke6 {[%emt 0:01:30]} ({Not} 45... a1=B 46. Bxa1 Rxa1 47. Rg7 $17) 46. Rd8 {[%emt 0:00:13]} Rb5 {[%emt 0:01:24] Weighted Error Value: White=0.44/Black=0.17 (very precise) .  Loses game:     	White=1     	---        Missed win:     	---       	Black=1      Mistake:       	White=4     	Black=2      Inaccurate:     	White=2     	Black=2      OK:         	White=14    	Black=16     Best:        	White=1     	Black=6      Strong:       	White=2     	Black=3} (46... a1=N $2 47. Rg8 $19) 0-1